bitfinex/quotes_BTCUSD_20240723
["timestamp","ask_amount","ask_price","bid_price","bid_amount"]
[1721713495902,0.10184,66549.0,66548.0,0.161924]
[1721713496119,0.00184,66549.0,66548.0,0.161924]
[1721713496314,0.06831827,66549.0,66548.0,0.161924]
[1721713496570,0.16831827,66549.0,66548.0,0.161924]
[1721713496770,0.10184,66549.0,66548.0,0.161924]
[1721713498541,0.22100262,66549.0,66548.0,0.161924]
[1721713498939,0.10184,66549.0,66548.0,0.161924]
[1721713499149,0.06831907,66549.0,66548.0,0.161924]
[1721713499347,0.06831907,66549.0,66548.0,1.14297891]
[1721713499348,0.00184,66549.0,66548.0,1.14297891]
[1721713499544,0.00184,66549.0,66548.0,1.46651291]
[1721713500573,0.00184,66549.0,66548.0,1.16597891]
[1721713501005,0.00184,66549.0,66548.0,0.695425]
[1721713501233,0.00184,66549.0,66548.0,0.244624]
[1721713501779,0.753165,66549.0,66548.0,0.100924]
[1721713501985,0.54717971,66549.0,66548.0,0.100924]
[1721713502188,0.29098039,66549.0,66548.0,0.100924]
[1721713502409,0.19643568,66549.0,66548.0,0.106924]
[1721713502610,0.79649568,66549.0,66548.0,0.100924]
[1721713502844,1.33939634,66549.0,66548.0,0.100924]
[1721713503025,1.52486168,66549.0,66548.0,0.111924]
[1721713503256,1.52581303,66549.0,66548.0,0.111924]
[1721713503482,1.56199763,66549.0,66548.0,0.111924]
[1721713503690,0.86145929,66549.0,66548.0,0.111924]
[1721713503906,0.252105,66549.0,66548.0,0.164024]
[1721713504119,0.16831384,66549.0,66548.0,0.264024]
[1721713504333,0.152105,66549.0,66548.0,0.264024]
[1721713504543,0.10084,66549.0,66548.0,0.264024]
[1721713504796,0.251105,66549.0,66548.0,0.264024]
[1721713504999,0.251105,66549.0,66548.0,0.200924]
[1721713505000,0.931765,66549.0,66548.0,0.200924]
[1721713505427,0.84119147,66549.0,66548.0,0.206924]
[1721713505630,0.252105,66549.0,66548.0,0.200924]
[1721713505835,0.16831086,66549.0,66548.0,0.200924]
[1721713506053,0.16831086,66549.0,66548.0,0.206924]
[1721713506054,0.10284,66549.0,66548.0,0.206924]
[1721713506259,0.29642238,66549.0,66548.0,0.200924]
[1721713506490,0.65176788,66549.0,66548.0,0.206924]
[1721713506719,0.65376788,66549.0,66548.0,0.206924]
[1721713506924,0.95429788,66549.0,66548.0,0.206924]
[1721713507143,0.253105,66549.0,66548.0,0.206924]
[1721713507372,0.253105,66549.0,66548.0,0.270224]
[1721713507373,0.252105,66549.0,66548.0,0.270224]
[1721713507578,0.62010851,66549.0,66548.0,0.206924]
[1721713507780,0.553635,66549.0,66548.0,0.206924]
[1721713508013,0.6671722,66549.0,66548.0,0.206924]
[1721713508240,0.9677022,66549.0,66548.0,0.206924]
[1721713508453,1.38871255,66549.0,66548.0,0.206924]
[1721713508677,1.49950143,66549.0,66548.0,0.206924]
[1721713508879,1.38871255,66549.0,66548.0,0.206924]
[1721713509088,1.46741255,66549.0,66548.0,0.206924]
[1721713509722,1.35387535,66549.0,66548.0,0.206924]
[1721713509949,1.05334535,66549.0,66548.0,0.206924]
[1721713510151,1.16415079,66549.0,66548.0,0.206924]
[1721713510391,1.14127184,66549.0,66548.0,0.206924]
[1721713510838,0.37286146,66549.0,66548.0,0.206924]
[1721713511045,0.46150886,66549.0,66548.0,0.206924]
[1721713511257,0.76204741,66549.0,66548.0,0.206924]
[1721713511458,0.67339146,66549.0,66548.0,0.206924]
[1721713511662,0.78420162,66549.0,66548.0,0.206924]
[1721713511864,0.67339146,66549.0,66548.0,0.206924]
[1721713512094,0.78420162,66549.0,66548.0,0.206924]
[1721713512303,0.67339146,66549.0,66548.0,0.206924]
[1721713512512,0.37286146,66549.0,66548.0,0.206924]
[1721713512722,0.67339146,66549.0,66548.0,0.206924]
[1721713512927,0.97392146,66549.0,66548.0,0.206924]
[1721713513169,1.57782742,66549.0,66548.0,0.206924]
[1721713513377,1.3472608,66549.0,66548.0,0.206924]
[1721713513580,1.46783491,66549.0,66548.0,0.206924]
[1721713513805,1.3472608,66549.0,66548.0,0.206924]
[1721713514008,1.4681266,66549.0,66548.0,0.206924]
[1721713516327,1.3472608,66549.0,66548.0,0.206924]
[1721713516517,1.46771239,66549.0,66548.0,0.206924]
[1721713517263,1.35834659,66549.0,66548.0,0.206924]
[1721713522426,1.35883278,66549.0,66548.0,0.206924]
[1721713523781,2.54889184,66549.0,66548.0,0.206924]
[1721713523984,2.54889184,66549.0,66539.0,0.009306]
[1721713523985,0.05,66540.0,66539.0,0.009306]
[1721713524193,2.07769827,66540.0,66539.0,0.009306]
[1721713524409,1.80156706,66535.0,66534.0,0.009295]
[1721713524615,2.17429078,66535.0,66534.0,0.009295]
[1721713524812,2.62430957,66535.0,66534.0,0.009295]
[1721713525017,2.62184643,66535.0,66534.0,0.009295]
[1721713525224,2.47488378,66535.0,66534.0,0.009295]
[1721713525637,2.51934331,66535.0,66534.0,0.009295]
[1721713525846,2.56300908,66535.0,66534.0,0.009295]
[1721713526046,2.7111109,66535.0,66534.0,0.009295]
[1721713526252,2.56176111,66535.0,66534.0,0.009295]
[1721713526455,1.55714906,66524.0,66523.0,0.009295]
[1721713526672,2.23666541,66524.0,66523.0,0.009295]
[1721713526887,2.62543371,66524.0,66523.0,0.009295]
[1721713527087,2.77654814,66524.0,66523.0,0.009295]
[1721713527218,2.89890821,66524.0,66523.0,0.009295]
[1721713527421,2.79960603,66524.0,66523.0,0.009295]
[1721713527632,1.530917,66508.0,66504.0,0.000924]
[1721713527821,1.98087127,66508.0,66504.0,0.000924]
[1721713528027,2.2054783,66508.0,66504.0,0.000924]
[1721713528267,2.4145057,66508.0,66504.0,0.000924]
[1721713528759,1.91564638,66508.0,66504.0,0.000924]
[1721713528969,0.67197369,66508.0,66504.0,0.000924]
[1721713529167,0.551072,66508.0,66506.0,0.066]
[1721713529377,0.551072,66508.0,66504.0,0.000924]
[1721713529378,1.155502,66508.0,66504.0,0.000924]
[1721713529754,1.152502,66508.0,66504.0,0.000924]
[1721713530072,1.50193327,66508.0,66504.0,0.000924]
[1721713530290,1.50103776,66508.0,66504.0,0.000924]
[1721713531136,1.37950156,66508.0,66504.0,0.000924]
[1721713531377,1.50109283,66508.0,66504.0,0.000924]
[1721713532113,1.72019283,66508.0,66504.0,0.000924]
[1721713532740,1.77019283,66508.0,66504.0,0.000924]
[1721713532950,1.82019283,66508.0,66504.0,0.000924]
[1721713533970,2.18320783,66508.0,66504.0,0.000924]
[1721713534178,1.88156402,66508.0,66504.0,0.000924]
[1721713534346,1.71926402,66508.0,66504.0,0.000924]
[1721713534758,1.59860156,66508.0,66504.0,0.000924]
[1721713534963,0.103,66508.0,66507.0,0.074106]
[1721713535176,0.003,66508.0,66507.0,0.525186]
[1721713535360,0.003,66508.0,66507.0,0.83204569]
[1721713535703,0.003,66508.0,66507.0,0.23060569]
[1721713535908,0.003,66508.0,66507.0,0.53132569]
[1721713536115,0.300673,66518.0,66508.0,0.150357]
[1721713536319,0.150343,66515.0,66507.0,0.23060369]
[1721713536550,0.002,66508.0,66507.0,0.525184]
[1721713536751,0.001,66508.0,66507.0,0.224464]
[1721713537167,0.001,66508.0,66507.0,0.074106]
[1721713537371,0.001,66508.0,66507.0,0.224466]
[1721713537580,0.002,66508.0,66507.0,0.224466]
[1721713537777,0.002,66508.0,66507.0,0.525186]
[1721713538368,0.4756,66521.0,66507.0,0.525186]
[1721713538369,0.7884,66528.0,66507.0,0.30272591]
[1721713538566,0.44093655,66524.0,66518.0,0.0652]
[1721713538769,0.002794,66528.0,66518.0,0.0652]
[1721713539124,0.150332,66520.0,66518.0,0.0652]
[1721713539327,0.150329,66521.0,66518.0,0.0652]
[1721713539536,0.300653,66522.0,66518.0,0.0652]
[1721713539743,0.1,66521.0,66518.0,0.215534]
[1721713539948,0.150322,66524.0,66518.0,0.216534]
[1721713539949,0.1,66523.0,66518.0,0.216534]
[1721713540150,0.251322,66524.0,66518.0,0.0652]
[1721713540370,0.101,66524.0,66518.0,0.0652]
[1721713540582,0.001,66521.0,66520.0,0.450989]
[1721713540813,0.001,66521.0,66520.0,0.81805]
[1721713541014,0.001,66521.0,66520.0,0.517389]
[1721713541226,0.001,66524.0,66520.0,0.517389]
[1721713541227,0.001,66524.0,66520.0,0.367059]
[1721713541427,0.4756,66529.0,66524.0,0.150321]
[1721713541633,0.150306,66531.0,66524.0,0.150321]
[1721713541834,0.002794,66531.0,66524.0,0.0664]
[1721713542038,0.150307,66531.0,66524.0,0.0664]
[1721713542271,0.0150307,66531.0,66525.0,0.00602758]
[1721713542473,0.300616,66530.0,66525.0,0.00602758]
[1721713542677,0.450925,66530.0,66525.0,0.00502758]
[1721713542893,0.150309,66530.0,66525.0,0.00502758]
[1721713543299,0.150306,66531.0,66525.0,0.00502758]
[1721713543505,0.152306,66531.0,66525.0,0.00502758]
[1721713543633,0.150308,66530.0,66525.0,0.00502758]
[1721713543831,0.150309,66530.0,66525.0,0.00502758]
[1721713544218,0.151309,66530.0,66525.0,0.00602758]
[1721713544419,0.001,66530.0,66525.0,0.00602758]
[1721713544828,0.002,66530.0,66525.0,0.00602758]
[1721713545386,0.001,66530.0,66525.0,0.00602758]
[1721713545596,0.1,66532.0,66525.0,0.00502758]
[1721713545789,0.002,66530.0,66525.0,0.00802758]
[1721713546000,0.00375797,66529.0,66525.0,0.00802758]
[1721713546167,0.150313,66528.0,66525.0,0.00502758]
[1721713546326,0.450951,66526.0,66525.0,0.00802758]
[1721713546531,0.150317,66526.0,66525.0,0.00802758]
[1721713546837,0.150317,66526.0,66524.0,0.0664]
[1721713546838,0.150319,66525.0,66524.0,0.0664]
[1721713547084,0.150319,66525.0,66524.0,0.07233711]
[1721713548458,0.8269529,66525.0,66524.0,0.07233711]
[1721713548588,0.5263149,66525.0,66524.0,0.07233711]
[1721713548794,0.301626,66528.0,66524.0,0.0664]
[1721713548975,0.150315,66527.0,66524.0,0.0664]
[1721713549566,0.451951,66526.0,66525.0,0.00793711]
[1721713549768,0.451951,66526.0,66525.0,0.00593711]
[1721713549769,0.751585,66526.0,66525.0,0.00593711]
[1721713549917,0.450957,66525.0,66524.0,0.0684]
[1721713550122,0.751595,66525.0,66524.0,0.0664]
[1721713550501,0.751595,66525.0,66524.0,0.0684]
[1721713550910,0.751595,66525.0,66524.0,0.0664]
[1721713551137,0.752595,66525.0,66524.0,0.0684]
[1721713551553,1.1587562,66525.0,66524.0,0.002]
[1721713551775,1.36129089,66525.0,66524.0,0.002]
[1721713552026,1.362234,66525.0,66524.0,0.002]
[1721713552261,1.2396562,66525.0,66524.0,0.002]
[1721713552612,0.30849906,66532.0,66516.0,0.0622]
[1721713552613,0.300622,66529.0,66516.0,0.0622]
[1721713552832,0.301639,66525.0,66516.0,0.0622]
[1721713553031,0.15033,66521.0,66517.0,0.00593896]
[1721713553164,0.302639,66525.0,66517.0,0.00593896]
[1721713553523,0.002,66525.0,66519.0,0.0608]
[1721713553647,0.001,66525.0,66521.0,0.0608]
[1721713554067,0.002,66525.0,66522.0,0.0059434]
[1721713554272,0.001,66525.0,66523.0,0.0608]
[1721713554679,0.001,66525.0,66524.0,0.0059434]
[1721713555450,0.001,66525.0,66524.0,0.1562644]
[1721713555864,0.002,66525.0,66524.0,0.0059434]
[1721713556065,0.001,66525.0,66524.0,0.1562644]
[1721713556265,0.102794,66533.0,66524.0,0.0059434]
[1721713556266,0.153098,66532.0,66524.0,0.0059434]
[1721713556442,0.001,66525.0,66524.0,0.1582624]
[1721713556663,0.001,66525.0,66524.0,0.152319]
[1721713556664,0.002,66525.0,66524.0,0.152319]
[1721713556817,0.002,66525.0,66524.0,0.0079434]
[1721713557022,0.001,66525.0,66524.0,0.0079434]
[1721713557227,0.002794,66529.0,66524.0,0.0059434]
[1721713557406,0.150308,66530.0,66524.0,0.0059434]
[1721713557600,0.150311,66529.0,66524.0,0.0079434]
[1721713557835,0.250306,66531.0,66524.0,0.1582644]
[1721713558028,0.001,66525.0,66524.0,0.1582644]
[1721713558297,0.001,66525.0,66524.0,0.0079434]
[1721713558507,0.001,66525.0,66524.0,0.1582644]
[1721713558947,0.001,66525.0,66524.0,0.4589074]
[1721713559204,0.001,66525.0,66524.0,0.1562644]
[1721713559394,0.001,66525.0,66524.0,0.1582644]
[1721713559803,0.001,66525.0,66524.0,0.4589074]
[1721713560008,0.001,66525.0,66524.0,1.30952535]
[1721713560216,0.001,66525.0,66524.0,1.46536522]
[1721713560347,0.002794,66539.0,66538.0,0.29379]
[1721713560547,0.002794,66544.0,66540.0,0.150285]
[1721713560982,0.002794,66544.0,66538.0,0.14898807]
[1721713560983,1.2441,66547.0,66539.0,0.0639]
[1721713561183,0.42823513,66546.0,66541.0,0.00548807]
[1721713561381,0.42823513,66546.0,66539.0,0.0639]
[1721713561382,0.150283,66541.0,66539.0,0.0639]
[1721713561612,0.002794,66546.0,66539.0,0.0639]
[1721713561823,0.12489413,66545.0,66540.0,0.00548807]
[1721713562022,0.150282,66542.0,66540.0,0.00548807]
[1721713562223,0.150283,66541.0,66540.0,0.00548807]
[1721713562448,0.8089514,66541.0,66540.0,0.00548807]
[1721713562646,0.8089514,66541.0,66515.0,0.300679]
[1721713562647,0.150309,66530.0,66520.0,0.1419]
[1721713562842,0.150309,66530.0,66524.0,0.15032]
[1721713563055,0.150309,66530.0,66522.0,0.300652]
[1721713563368,0.4756,66540.0,66530.0,0.1408]
[1721713563369,0.625886,66540.0,66530.0,0.1408]
[1721713563510,0.28112187,66539.0,66530.0,0.1408]
[1721713563714,0.12635587,66538.0,66531.0,0.00547516]
[1721713563914,0.002794,66538.0,66537.0,0.061]
[1721713564125,0.001,66541.0,66537.0,0.061]
[1721713564331,0.001,66541.0,66539.0,0.150286]
[1721713564703,0.001,66541.0,66537.0,0.061]
[1721713564704,0.001,66541.0,66538.0,0.00547516]
[1721713564883,0.001,66541.0,66540.0,1.114698]
[1721713565312,0.00084,66549.0,66540.0,0.23271991]
[1721713565533,0.00084,66549.0,66548.0,0.893935]
[1721713565741,0.00084,66549.0,66548.0,0.916935]
[1721713565963,0.00084,66549.0,66548.0,0.92241427]
[1721713566377,0.00084,66549.0,66548.0,1.09356659]
[1721713566583,0.00084,66549.0,66548.0,1.39410059]
[1721713566810,0.00084,66549.0,66548.0,1.06843418]
[1721713567021,0.00284,66549.0,66548.0,1.37096818]
[1721713567240,0.00284,66549.0,66548.0,1.36896818]
[1721713567446,0.00184,66549.0,66548.0,1.36896818]
[1721713567653,0.00184,66549.0,66548.0,1.86646483]
[1721713567863,0.4756,66558.0,66557.0,0.751235]
[1721713568086,0.002794,66568.0,66567.0,0.150224]
[1721713568299,0.150212,66573.0,66567.0,0.150224]
[1721713568560,0.150205,66576.0,66565.0,0.300457]
[1721713568760,0.07348942,66579.0,66560.0,0.300479]
[1721713568761,0.303209,66575.0,66569.0,0.0657]
[1721713568968,0.08504931,66581.0,66569.0,0.0657]
[1721713569175,0.002794,66580.0,66571.0,0.450646]
[1721713569587,0.002794,66581.0,66571.0,0.45600278]
[1721713569797,0.002794,66581.0,66571.0,1.28348469]
[1721713570002,0.07348942,66587.0,66571.0,1.00605369]
[1721713570204,0.002794,66586.0,66571.0,1.00605369]
[1721713570608,0.002794,66586.0,66571.0,1.37178469]
[1721713570811,0.002794,66586.0,66571.0,1.37778469]
[1721713571011,0.002794,66586.0,66571.0,1.07735369]
[1721713571214,0.44093655,66588.0,66571.0,0.77692269]
[1721713571215,0.00184,66572.0,66571.0,0.77692269]
[1721713571546,0.00184,66572.0,66571.0,1.07735369]
[1721713572085,0.00184,66572.0,66571.0,1.07135369]
[1721713572359,0.00084,66572.0,66571.0,1.07135369]
[1721713572546,0.00184,66572.0,66571.0,1.08535369]
[1721713572691,0.00184,66572.0,66571.0,1.13035369]
[1721713572894,0.00184,66572.0,66571.0,1.48078469]
[1721713573095,0.00184,66572.0,66571.0,1.48578469]
[1721713573296,0.00184,66572.0,66571.0,1.66874734]
[1721713573497,0.00284,66572.0,66571.0,1.48078469]
[1721713573905,0.00184,66572.0,66571.0,1.47178469]
[1721713574110,0.00084,66589.0,66588.0,0.150177]
[1721713574351,0.00084,66589.0,66588.0,0.92090491]
[1721713574550,0.00084,66589.0,66588.0,0.62583314]
[1721713575339,0.00084,66589.0,66588.0,0.92618714]
[1721713575954,0.00184,66589.0,66588.0,0.93318714]
[1721713576542,0.00184,66589.0,66588.0,0.94018714]
[1721713576751,0.00284,66589.0,66588.0,1.01468714]
[1721713576987,0.00184,66589.0,66588.0,1.13724585]
[1721713577192,0.00184,66589.0,66588.0,1.48759985]
[1721713577439,0.00284,66589.0,66588.0,1.45159985]
[1721713577629,0.00184,66589.0,66588.0,1.44259985]
[1721713577818,0.00184,66589.0,66588.0,1.35604114]
[1721713578142,0.00184,66589.0,66588.0,1.45604114]
[1721713578277,0.00184,66589.0,66588.0,1.35604114]
[1721713578478,0.00184,66589.0,66588.0,1.40604114]
[1721713578734,0.00184,66589.0,66588.0,1.35604114]
[1721713578962,0.00184,66589.0,66588.0,1.30604114]
[1721713579074,0.00284,66589.0,66588.0,0.71933314]
[1721713579282,0.00084,66589.0,66588.0,0.99168714]
[1721713579485,0.00084,66589.0,66588.0,0.69133314]
[1721713580110,0.00084,66589.0,66588.0,0.70533314]
[1721713580324,0.00084,66589.0,66588.0,1.10631045]
[1721713580543,0.00084,66589.0,66588.0,1.09231045]
[1721713580749,0.00084,66589.0,66588.0,1.40666445]
[1721713580750,0.00184,66589.0,66588.0,1.40666445]
[1721713580956,0.00184,66589.0,66588.0,1.32004114]
[1721713581161,0.00184,66589.0,66588.0,1.37004114]
[1721713581371,0.00184,66589.0,66588.0,1.53854114]
[1721713581827,0.00184,66589.0,66588.0,1.85289514]
[1721713582175,0.00184,66589.0,66588.0,1.55254114]
[1721713582297,0.00184,66589.0,66588.0,2.27325779]
[1721713582514,0.00184,66589.0,66588.0,1.92290379]
[1721713582714,0.00184,66589.0,66588.0,1.76152987]
[1721713582987,0.00184,66589.0,66588.0,1.08818714]
[1721713583165,0.00084,66589.0,66588.0,1.07418714]
[1721713583305,0.00184,66589.0,66588.0,1.08818714]
[1721713583511,0.00284,66589.0,66588.0,1.10218714]
[1721713583737,0.00284,66589.0,66588.0,1.57275985]
[1721713583947,0.00184,66589.0,66588.0,1.88215985]
[1721713584255,0.00184,66589.0,66588.0,2.18251385]
[1721713584459,0.00284,66589.0,66588.0,1.94615985]
[1721713584871,0.00084,66589.0,66588.0,1.91815985]
[1721713585457,0.00084,66589.0,66588.0,2.31851385]
[1721713586258,0.00184,66589.0,66588.0,2.34651385]
[1721713586509,0.00184,66589.0,66588.0,1.86194114]
[1721713586664,0.00184,66589.0,66588.0,1.82594114]
[1721713587230,0.00184,66589.0,66588.0,1.87594114]
[1721713588169,0.00184,66589.0,66588.0,1.92594114]
[1721713588375,0.00184,66589.0,66588.0,2.22629514]
[1721713588573,0.00847,66593.0,66588.0,2.22629514]
[1721713588574,0.00847,66593.0,66592.0,1.291476]
[1721713588932,0.00847,66593.0,66592.0,1.76660543]
[1721713589564,0.00847,66593.0,66592.0,1.81660543]
[1721713589801,0.00847,66593.0,66592.0,1.76660543]
[1721713590013,0.00847,66593.0,66592.0,1.78060543]
[1721713590180,0.00847,66593.0,66592.0,1.81617291]
[1721713590385,0.00847,66593.0,66592.0,1.86617291]
[1721713590584,0.00947,66593.0,66592.0,1.89417291]
[1721713590986,0.00947,66593.0,66592.0,1.90264291]
[1721713591514,0.00947,66593.0,66592.0,2.40264291]
[1721713591716,0.00947,66593.0,66592.0,2.70297891]
[1721713591917,0.00947,66593.0,66592.0,2.50264291]
[1721713592479,0.00947,66593.0,66592.0,2.47464291]
[1721713592480,0.00847,66593.0,66592.0,2.47464291]
[1721713592929,0.00847,66593.0,66592.0,2.50264291]
[1721713593148,0.00847,66593.0,66592.0,2.48864291]
[1721713593382,0.00847,66593.0,66592.0,2.47464291]
[1721713593584,0.00847,66593.0,66592.0,2.48864291]
[1721713593782,0.00847,66593.0,66592.0,2.80297291]
[1721713595545,0.00847,66604.0,66596.0,1.837131]
[1721713595849,0.00847,66604.0,66596.0,2.48627091]
[1721713596188,0.00847,66604.0,66596.0,2.49100086]
[1721713596393,0.00847,66604.0,66596.0,2.44100086]
[1721713596628,0.00847,66604.0,66596.0,2.49100086]
[1721713596784,0.00847,66604.0,66596.0,2.65196351]
[1721713597625,0.00847,66604.0,66596.0,2.66596351]
[1721713599354,0.00847,66604.0,66596.0,2.63796351]
[1721713599569,0.00847,66604.0,66596.0,2.23764551]
[1721713599773,0.00847,66604.0,66596.0,2.25164551]
[1721713600180,0.00847,66604.0,66596.0,2.26564551]
[1721713600401,0.00847,66604.0,66596.0,2.60196351]
[1721713600793,0.00847,66604.0,66596.0,2.61596351]
[1721713600994,0.00847,66604.0,66596.0,2.66596351]
[1721713602242,0.00847,66604.0,66596.0,2.59726351]
[1721713602440,0.00847,66604.0,66596.0,2.61126351]
[1721713602641,0.00847,66604.0,66596.0,2.59726351]
[1721713603564,0.00847,66604.0,66596.0,2.11814551]
[1721713603768,0.00847,66604.0,66596.0,1.93518286]
[1721713604407,0.00847,66604.0,66596.0,2.38550086]
[1721713604553,0.00847,66604.0,66596.0,2.03518286]
[1721713605475,0.00847,66604.0,66596.0,2.33550086]
[1721713605674,0.00847,66604.0,66596.0,2.38550086]
[1721713605899,0.00847,66604.0,66596.0,2.53246351]
[1721713606269,0.00847,66604.0,66596.0,2.60966351]
[1721713609213,0.00847,66604.0,66596.0,2.55966351]
[1721713609356,0.00847,66604.0,66596.0,2.20934551]
[1721713609545,0.0791,66602.0,66596.0,1.91218286]
[1721713610588,0.0791,66602.0,66596.0,1.89818286]
[1721713611244,0.0791,66602.0,66596.0,1.92118286]
[1721713611448,0.00847,66604.0,66596.0,1.97118286]
[1721713612105,0.00847,66604.0,66596.0,1.98518286]
[1721713612308,0.00847,66604.0,66596.0,2.13214551]
[1721713612733,0.00847,66604.0,66596.0,2.48246351]
[1721713613135,0.00847,66604.0,66596.0,2.53246351]
[1721713613336,0.00847,66604.0,66596.0,2.48246351]
[1721713613627,0.0796,66602.0,66596.0,1.97118286]
[1721713613828,0.0796,66602.0,66596.0,1.98518286]
[1721713614460,0.00847,66604.0,66596.0,2.38550086]
[1721713614907,0.00847,66604.0,66596.0,2.37150086]
[1721713615451,0.00847,66604.0,66596.0,2.46640086]
[1721713615658,0.00847,66604.0,66603.0,1.88130691]
[1721713615866,0.00847,66604.0,66603.0,2.30459691]
[1721713616002,0.00847,66604.0,66603.0,2.30895456]
[1721713616806,0.00847,66604.0,66603.0,2.32295456]
[1721713617655,0.00847,66604.0,66603.0,2.27295456]
[1721713617831,0.00847,66604.0,66603.0,1.92266856]
[1721713618048,0.00847,66604.0,66603.0,1.98666856]
[1721713618393,0.00847,66604.0,66603.0,2.13363121]
[1721713618646,0.00847,66604.0,66603.0,1.98666856]
[1721713619666,0.00847,66604.0,66603.0,2.06269172]
[1721713620149,0.00847,66604.0,66603.0,2.07184622]
[1721713620821,0.00847,66604.0,66603.0,2.37213222]
[1721713621022,0.00847,66604.0,66603.0,2.12184622]
[1721713621376,0.00847,66604.0,66603.0,2.02184622]
[1721713621780,0.00847,66604.0,66603.0,1.94582319]
[1721713621979,0.00847,66604.0,66603.0,2.02172845]
[1721713623393,0.08947,66614.0,66613.0,0.750602]
[1721713623394,0.08294,66614.0,66613.0,0.750602]
[1721713623566,0.08294,66614.0,66613.0,1.02570761]
[1721713623801,0.08294,66614.0,66613.0,1.32999338]
[1721713624825,0.08294,66614.0,66613.0,1.34399338]
[1721713625615,0.08294,66614.0,66613.0,1.35799338]
[1721713627500,0.08294,66614.0,66613.0,1.25290768]
[1721713628399,0.08294,66614.0,66613.0,1.26209268]
[1721713631336,0.08294,66614.0,66613.0,0.05504477]
[1721713631537,0.08294,66614.0,66613.0,0.03204477]
[1721713631538,0.14774,66614.0,66613.0,0.03204477]
[1721713631754,0.36457957,66614.0,66613.0,0.03204477]
[1721713631988,0.66481657,66614.0,66613.0,0.028]
[1721713632399,0.21446157,66614.0,66613.0,0.028]
[1721713632606,0.0818,66613.0,66611.0,0.150125]
[1721713632804,0.04727834,66612.0,66611.0,0.150124]
[1721713633060,0.04448434,66612.0,66611.0,0.150124]
[1721713633244,0.0444833,66612.0,66611.0,0.150124]
[1721713633449,0.14852651,66613.0,66611.0,0.150124]
[1721713633651,0.002794,66612.0,66611.0,0.150124]
[1721713633849,0.002794,66612.0,66608.0,0.300264]
[1721713634061,0.04448977,66611.0,66607.0,0.300266]
[1721713634216,0.002794,66610.0,66608.0,0.023]
[1721713634417,0.04728247,66612.0,66608.0,0.023]
[1721713634641,0.04728247,66612.0,66606.0,0.023]
[1721713634642,0.0764,66609.0,66606.0,0.023]
[1721713634846,0.0764,66607.0,66604.0,0.023]
[1721713635048,0.0764,66605.0,66604.0,0.17001991]
[1721713635636,0.0764,66605.0,66604.0,0.92072491]
[1721713636038,0.0764,66605.0,66604.0,0.32016091]
[1721713636246,0.0764,66605.0,66604.0,0.33416091]
[1721713636605,0.0764,66605.0,66604.0,0.32016091]
[1721713636842,0.0764,66605.0,66604.0,0.33416091]
[1721713637457,0.0764,66605.0,66604.0,0.32016091]
[1721713637899,0.0764,66605.0,66604.0,0.33416091]
[1721713638085,0.0764,66605.0,66604.0,0.64844291]
[1721713638288,0.0764,66605.0,66604.0,0.63444291]
[1721713638717,0.0764,66605.0,66604.0,0.64844291]
[1721713639008,0.0764,66605.0,66604.0,0.94872491]
[1721713639197,0.0764,66605.0,66604.0,0.9795536]
[1721713640467,0.0764,66605.0,66604.0,0.6792716]
[1721713641210,0.0764,66605.0,66604.0,0.34816091]
[1721713641498,0.526815,66605.0,66604.0,0.028]
[1721713641710,0.0764,66605.0,66604.0,0.028]
[1721713641921,0.29324973,66605.0,66604.0,0.028]
[1721713642143,1.10321113,66605.0,66604.0,0.028]
[1721713642364,1.31453915,66605.0,66604.0,0.028]
[1721713642584,1.31453915,66605.0,66604.0,0.014]
[1721713643051,1.189769,66605.0,66604.0,0.014]
[1721713643276,1.44786195,66605.0,66604.0,0.014]
[1721713643502,1.189769,66605.0,66604.0,0.014]
[1721713643723,1.31455857,66605.0,66604.0,0.014]
[1721713643932,1.31455857,66605.0,66604.0,0.028]
[1721713644152,1.46152122,66605.0,66604.0,0.028]
[1721713644366,1.51152122,66605.0,66604.0,0.014]
[1721713644621,1.61152122,66605.0,66604.0,0.014]
[1721713644830,0.45049,66594.0,66593.0,0.000924]
[1721713645031,0.64016383,66594.0,66593.0,0.000924]
[1721713645447,0.59579,66594.0,66593.0,0.000924]
[1721713645661,0.1453,66594.0,66593.0,0.000924]
[1721713645875,0.0819,66594.0,66593.0,0.45498309]
[1721713646096,0.0819,66594.0,66593.0,0.97083231]
[1721713646307,0.0819,66594.0,66593.0,0.625003]
[1721713646517,0.0819,66594.0,66593.0,0.01848709]
[1721713646917,0.232063,66594.0,66593.0,0.01848709]
[1721713647121,0.0819,66594.0,66593.0,0.014924]
[1721713647347,0.0819,66594.0,66593.0,0.024924]
[1721713647524,0.0819,66594.0,66593.0,0.02848709]
[1721713647759,0.232063,66594.0,66593.0,0.01848709]
[1721713647963,0.59799,66594.0,66593.0,0.00448709]
[1721713648165,0.59799,66594.0,66593.0,0.014924]
[1721713648615,0.59799,66594.0,66593.0,0.000924]
[1721713648833,0.59799,66594.0,66593.0,0.025924]
[1721713649271,0.59799,66594.0,66593.0,0.011924]
[1721713649486,0.59799,66594.0,66593.0,0.025924]
[1721713649944,0.59799,66594.0,66593.0,0.011924]
[1721713650155,0.898317,66594.0,66593.0,0.011924]
[1721713650783,0.898317,66594.0,66593.0,0.000924]
[1721713650998,1.198644,66594.0,66593.0,0.010924]
[1721713651204,1.38994384,66594.0,66593.0,0.010924]
[1721713651416,1.38994384,66594.0,66593.0,0.024924]
[1721713651625,1.38994384,66594.0,66593.0,0.010924]
[1721713651959,1.198644,66594.0,66593.0,0.024924]
[1721713652136,1.38989822,66594.0,66593.0,0.000924]
[1721713652370,1.32345385,66594.0,66593.0,0.007924]
[1721713652720,1.32345385,66594.0,66593.0,0.020924]
[1721713652911,1.36773826,66594.0,66593.0,0.020924]
[1721713653311,1.32345385,66594.0,66593.0,0.020924]
[1721713653746,1.32345385,66594.0,66593.0,0.013924]
[1721713653941,1.36772779,66594.0,66593.0,0.013924]
[1721713654102,1.36772779,66594.0,66593.0,0.020924]